[Event "CZE-ch 2020"]
[Site "Pilsen"]
[Date "2020.08.24"]
[Round "2.33"]
[White "Hlozek, David"]
[Black "Houska, Jiri"]
[Result "0-1"]
[ECO "B76"]
[WhiteElo "2037"]
[BlackElo "2202"]
[Annotator "ChessBase"]
[PlyCount "100"]
[EventDate "2020.08.23"]
[EventType "swiss"]
[EventCountry "CZE"]
[SourceTitle "playchess.com"]
[Source "ChessBase"]
[SourceQuality "1"]
[TimeControl "40/5400+30:1800+30"]

1. e4 {[%emt 0:00:00]} c5 {[%emt 0:00:00]} 2. Nf3 {[%emt 0:00:00]} d6 {[%emt 0:00:00]} 3. d4 {[%emt 0:00:00]} cxd4 {[%emt 0:00:00]} 4. Nxd4 {[%emt 0:00:00]} Nf6 {[%emt 0:00:00]} 5. Nc3 {[%emt 0:00:00]} g6 {[%emt 0:00:00]} 6. Be3 {[%emt 0:00:11]} Bg7 {[%emt 0:00:00]} 7. f3 {[%emt 0:00:29]} O-O {[%emt 0:00:00]} 8. Qd2 {[%emt 0:00:07]} Nc6 {[%emt 0:00:00]} 9. O-O-O {[%emt 0:00:06]} d5 {[%emt 0:00:26]} 10. Kb1 {[%emt 0:00:28]} Nxd4 {[%emt 0:01:14]} 11. e5 {[%emt 0:00:57]} Nf5 {[%emt 0:01:02]} 12. exf6 {[%emt 0:00:06]} Bxf6 {[%emt 0:00:16]} 13. Nxd5 {[%emt 0:00:04]} Qxd5 {[%emt 0:01:15]} 14. Qxd5 {[%emt 0:00:05]} Nxe3 {[%emt 0:00:08]} 15. Qd2 {[%emt 0:01:11]} Nxd1 {[%emt 0:00:05]} 16. Qxd1 {[%emt 0:00:03]} Be6 {[%emt 0:00:52]} 17. Qc1 {[%emt 0:00:35]} Rfd8 {[%emt 0:18:17]} 18. Bd3 {[%emt 0:00:13]} Rd6 {[%emt 0:06:49]} 19. g4 {[%emt 0:09:04]} Rad8 {[%emt 0:11:30]} 20. h4 {[%emt 0:02:44]} Rb6 {[%emt 0:00:13]} 21. b3 {[%emt 0:02:49]} a5 {[%emt 0:00:37]} 22. Qa3 {[%emt 0:09:28]} Ra8 {[%emt 0:17:25]} 23. g5 {[%emt 0:46:27]} Bg7 {[%emt 0:00:12]} 24. Qc5 {[%emt 0:03:59]} Rd6 {[%emt 0:01:55]} 25. a4 {[%emt 0:02:29]} Bxb3 {[%emt 0:06:02]} 26. Qb5 {[%emt 0:10:08]} Bd5 {[%emt 0:02:06]} 27. Re1 {[%emt 0:00:47]} e6 {[%emt 0:18:24]} 28. f4 {[%emt 0:00:53]} Bc6 {[%emt 0:02:06]} 29. Qb6 {[%emt 0:01:48]} Rd4 {[%emt 0:03:48]} 30. Bb5 {[%emt 0:01:02]} Bd5 {[%emt 0:04:23]} 31. Kc1 {[%emt 0:02:14]} Rxf4 {[%emt 0:00:45]} 32. Qc7 {[%emt 0:01:23]} Rxh4 {[%emt 0:02:06]} 33. Rf1 {[%emt 0:01:36]} e5 {[%emt 0:00:16]} 34. c4 {[%emt 0:00:29]} Be6 {[%emt 0:00:16]} 35. Qxb7 {[%emt 0:00:51]} Rc8 {[%emt 0:00:35]} 36. Rd1 {[%emt 0:02:17]} Bf8 {[%emt 0:01:46]} 37. Re1 {[%emt 0:00:46]} Rcxc4+ {[%emt 0:01:35]} 38. Bxc4 {[%emt 0:00:30]} Rxc4+ {[%emt 0:00:03]} 39. Kd1 {[%emt 0:00:14]} Bg4+ {[%emt 0:00:25]} 40. Re2 {[%emt 0:00:53]} Rxa4 {[%emt 0:01:32]} 41. Ke1 {[%emt 0:30:21]} Bxe2 {[%emt 0:03:07]} 42. Kxe2 {[%emt 0:00:00]} Rg4 {[%emt 0:06:54]} 43. Qd5 {[%emt 0:00:00]} Rxg5 {[%emt 0:01:26]} 44. Qxa5 {[%emt 0:00:00]} Rf5 {[%emt 0:00:39]} 45. Qd8 {[%emt 0:00:00]} Kg7 {[%emt 0:00:08]} 46. Qh4 {[%emt 0:00:00]} h5 {[%emt 0:00:27]} 47. Qe4 {[%emt 0:00:00]} Be7 {[%emt 0:00:09]} 48. Qb7 {[%emt 0:00:00]} Bf6 {[%emt 0:00:04]} 49. Qe4 {[%emt 0:00:00]} h4 {[%emt 0:00:24]} 50. Qg2 {[%emt 0:00:00]} Rf4 {[%emt 0:00:28]} 0-1

[Event "CZE-ch 2020"]
[Site "Pilsen"]
[Date "2020.08.24"]
[Round "2.34"]
[White "Simet, Martin"]
[Black "Benes, Miroslav"]
[Result "1-0"]
[ECO "D00"]
[WhiteElo "2194"]
[BlackElo "2011"]
[Annotator "ChessBase"]
[PlyCount "83"]
[EventDate "2020.08.23"]
[EventType "swiss"]
[EventCountry "CZE"]
[SourceTitle "playchess.com"]
[Source "ChessBase"]
[SourceQuality "1"]
[TimeControl "40/5400+30:1800+30"]

1. d4 {[%emt 0:00:00]} d5 {[%emt 0:00:00]} 2. Bf4 {[%emt 0:00:00]} Nf6 {[%emt 0:00:00]} 3. e3 {[%emt 0:00:21]} e6 {[%emt 0:00:00]} 4. Nd2 {[%emt 0:01:33]} Bd6 {[%emt 0:00:16]} 5. Bg3 {[%emt 0:00:14]} c5 {[%emt 0:00:45]} 6. c3 {[%emt 0:00:37]} Qc7 {[%emt 0:00:35]} 7. Ngf3 {[%emt 0:01:45]} Nbd7 {[%emt 0:03:42]} 8. Rc1 {[%emt 0:04:29]} O-O {[%emt 0:01:40]} 9. Be2 {[%emt 0:04:01]} b6 {[%emt 0:10:32]} 10. c4 {[%emt 0:10:33]} Bb7 {[%emt 0:07:55]} 11. cxd5 {[%emt 0:07:51]} exd5 {[%emt 0:05:35]} 12. dxc5 {[%emt 0:08:23]} bxc5 {[%emt 0:00:32]} 13. Nd4 {[%emt 0:02:26]} Bxg3 {[%emt 0:00:15]} 14. hxg3 {[%emt 0:00:09]} Qa5 {[%emt 0:07:32]} 15. N4b3 {[%emt 0:12:22]} Qb6 {[%emt 0:03:22]} 16. g4 {[%emt 0:01:11]} h6 {[%emt 0:10:12]} 17. Qc2 {[%emt 0:02:59]} Rac8 {[%emt 0:00:31]} 18. g5 {[%emt 0:06:18]} hxg5 {[%emt 0:03:02]} 19. Qf5 {[%emt 0:02:36]} Rfe8 {[%emt 0:20:30]} 20. Qxg5 {[%emt 0:03:15]} Ne5 {[%emt 0:03:40]} 21. Nf3 {[%emt 0:13:55]} Nxf3+ {[%emt 0:08:13]} 22. gxf3 {[%emt 0:00:39]} a5 {[%emt 0:06:13]} 23. Rg1 {[%emt 0:02:54]} g6 {[%emt 0:00:55]} 24. Bd3 {[%emt 0:02:55]} Nh7 {[%emt 0:00:35]} 25. Qh6 {[%emt 0:00:13]} Nf8 {[%emt 0:00:48]} 26. Nd2 {[%emt 0:02:38]} Qf6 {[%emt 0:01:06]} 27. b3 {[%emt 0:01:11]} Ba6 {[%emt 0:01:57]} 28. Bb1 {[%emt 0:01:27]} Qb2 {[%emt 0:01:37]} 29. Kd1 {[%emt 0:01:59]} Qg7 {[%emt 0:01:21]} 30. Qh4 {[%emt 0:00:33]} Rcd8 {[%emt 0:01:06]} 31. f4 {[%emt 0:01:36]} d4 {[%emt 0:00:22]} 32. e4 {[%emt 0:00:14]} d3 {[%emt 0:00:15]} 33. e5 {[%emt 0:01:00]} a4 {[%emt 0:00:41]} 34. Rh1 {[%emt 0:01:20]} axb3 {[%emt 0:00:10]} 35. axb3 {[%emt 0:00:13]} Bc8 {[%emt 0:00:30]} 36. Ne4 {[%emt 0:00:23]} Nd7 {[%emt 0:00:57]} 37. Nf6+ {[%emt 0:00:52]} Kf8 {[%emt 0:00:30]} 38. Qh8+ {[%emt 0:00:42]} Qxh8 {[%emt 0:00:01]} 39. Rxh8+ {[%emt 0:00:07]} Ke7 {[%emt 0:00:11]} 40. Rxe8+ {[%emt 0:00:05]} Rxe8 {[%emt 0:00:10]} 41. Nxe8 {[%emt 0:30:05]} Kxe8 {[%emt 0:30:41]} 42. Bxd3 {[%emt 0:00:06]} 1-0

[Event "CZE-ch 2020"]
[Site "Pilsen"]
[Date "2020.08.24"]
[Round "2.36"]
[White "Kures, Michael"]
[Black "Pychova, Nela"]
[Result "1/2-1/2"]
[ECO "B77"]
[WhiteElo "2019"]
[BlackElo "2159"]
[Annotator "ChessBase"]
[PlyCount "91"]
[EventDate "2020.08.23"]
[EventType "swiss"]
[EventCountry "CZE"]
[SourceTitle "playchess.com"]
[Source "ChessBase"]
[SourceQuality "1"]
[TimeControl "40/5400+30:1800+30"]

1. e4 {[%emt 0:00:00]} c5 {[%emt 0:00:00]} 2. Nf3 {[%emt 0:00:00]} Nc6 {[%emt 0:00:02]} 3. d4 {[%emt 0:00:31]} cxd4 {[%emt 0:00:13]} 4. Nxd4 {[%emt 0:00:12]} g6 {[%emt 0:00:56]} 5. Nc3 {[%emt 0:01:18]} Bg7 {[%emt 0:01:03]} 6. Be3 {[%emt 0:01:03]} Nf6 {[%emt 0:03:00]} 7. f3 {[%emt 0:01:07]} O-O {[%emt 0:03:01]} 8. Bc4 {[%emt 0:00:30]} d6 {[%emt 0:03:52]} 9. Qd2 {[%emt 0:00:26]} Bd7 {[%emt 0:01:56]} 10. Bb3 {[%emt 0:00:14]} Rc8 {[%emt 0:22:32]} 11. O-O-O {[%emt 0:02:13]} Nxd4 {[%emt 0:00:45]} 12. Bxd4 {[%emt 0:00:17]} b5 {[%emt 0:00:22]} 13. Nd5 {[%emt 0:03:16]} Nxd5 {[%emt 0:03:17]} 14. Bxg7 {[%emt 0:00:19]} Kxg7 {[%emt 0:00:25]} 15. Bxd5 {[%emt 0:00:55]} a5 {[%emt 0:04:49]} 16. a3 {[%emt 0:09:44]} b4 {[%emt 0:03:19]} 17. axb4 {[%emt 0:01:08]} axb4 {[%emt 0:03:39]} 18. Qxb4 {[%emt 0:00:26]} Rc5 {[%emt 0:11:02]} 19. Rd3 {[%emt 0:04:55]} Rb5 {[%emt 0:07:31]} 20. Qd4+ {[%emt 0:01:30]} e5 {[%emt 0:05:45]} 21. Qc4 Ra5 {[%emt 0:03:45]} 22. Ra3 {[%emt 0:04:28]} Rxa3 {[%emt 0:01:24]} 23. bxa3 {[%emt 0:00:05]} Qg5+ {[%emt 0:00:29]} 24. Kb2 {[%emt 0:07:47]} Qxg2 {[%emt 0:03:56]} 25. Qf1 {[%emt 0:00:28]} Qd2 {[%emt 0:01:58]} 26. Qd1 {[%emt 0:01:19]} Qa5 {[%emt 0:01:10]} 27. Bb3 {[%emt 0:00:07]} Qb6 {[%emt 0:05:17]} 28. Qd3 {[%emt 0:01:32]} Bb5 {[%emt 0:03:23]} 29. Qd5 {[%emt 0:01:00]} Be2 {[%emt 0:00:40]} 30. Re1 {[%emt 0:19:43]} Bxf3 {[%emt 0:00:40]} 31. Qd3 {[%emt 0:00:52]} Bg4 {[%emt 0:01:02]} 32. Rf1 {[%emt 0:01:27]} Be6 {[%emt 0:02:04]} 33. Rd1 {[%emt 0:00:30]} Rd8 {[%emt 0:01:03]} 34. Rd2 {[%emt 0:01:24]} f5 {[%emt 0:01:34]} 35. exf5 {[%emt 0:01:25]} Bxf5 {[%emt 0:00:02]} 36. Qd5 {[%emt 0:00:10]} Qe3 {[%emt 0:01:21]} 37. a4 {[%emt 0:10:35]} Kh6 {[%emt 0:00:26]} 38. a5 {[%emt 0:03:26]} Be6 {[%emt 0:00:41]} 39. Qg2 {[%emt 0:08:25]} Bxb3 {[%emt 0:00:26]} 40. Rd3 {[%emt 0:00:22]} Qa7 {[%emt 0:00:34]} 41. Rxb3 {[%emt 0:31:18]} Rb8 {[%emt 0:10:55]} 42. Qd2+ {[%emt 0:00:00]} Kg7 {[%emt 0:01:27]} 43. Qxd6 {[%emt 0:00:00]} Rxb3+ {[%emt 0:00:11]} 44. Kxb3 {[%emt 0:00:00]} Qxa5 {[%emt 0:00:13]} 45. Qe7+ {[%emt 0:00:00]} Kh6 {[%emt 0:02:08]} 46. Qh4+ {[%emt 0:00:00]} 1/2-1/2

[Event "CZE-ch 2020"]
[Site "Pilsen"]
[Date "2020.08.24"]
[Round "2.38"]
[White "Paseka, Matyas"]
[Black "Babula ml., Vlastimil"]
[Result "1-0"]
[ECO "B93"]
[WhiteElo "1959"]
[BlackElo "2138"]
[Annotator "ChessBase"]
[PlyCount "107"]
[EventDate "2020.08.23"]
[EventType "swiss"]
[EventCountry "CZE"]
[SourceTitle "playchess.com"]
[Source "ChessBase"]
[SourceQuality "1"]
[TimeControl "40/5400+30:1800+30"]

1. e4 {[%emt 0:00:00]} c5 {[%emt 0:00:00]} 2. Nf3 {[%emt 0:00:00]} d6 {[%emt 0:00:20]} 3. d4 {[%emt 0:00:00]} cxd4 {[%emt 0:00:14]} 4. Nxd4 {[%emt 0:00:05]} Nf6 {[%emt 0:00:16]} 5. Nc3 {[%emt 0:00:07]} a6 {[%emt 0:00:24]} 6. f4 {[%emt 0:00:40]} e6 {[%emt 0:04:16]} 7. Bd3 {[%emt 0:00:25]} Be7 {[%emt 0:02:38]} 8. e5 {[%emt 0:00:49]} dxe5 {[%emt 0:04:29]} 9. fxe5 {[%emt 0:00:11]} Nfd7 {[%emt 0:02:08]} 10. Nxe6 {[%emt 0:00:59]} Qa5 {[%emt 0:03:19]} 11. Nxg7+ {[%emt 0:01:46]} Kf8 {[%emt 0:02:00]} 12. Bh6 {[%emt 0:02:52]} Qxe5+ {[%emt 0:01:11]} 13. Ne2 {[%emt 0:05:18]} Nf6 {[%emt 0:03:23]} 14. Nf5+ {[%emt 0:10:25]} Ke8 {[%emt 0:00:57]} 15. Bf4 {[%emt 0:00:44]} Qc5 {[%emt 0:07:15]} 16. Neg3 {[%emt 0:06:25]} Nd5 {[%emt 0:07:55]} 17. Be5 {[%emt 0:01:29]} Ne3 {[%emt 0:01:19]} 18. Nxe3 {[%emt 0:00:53]} Qxe5 {[%emt 0:00:45]} 19. Qe2 {[%emt 0:01:29]} Bc5 {[%emt 0:05:26]} 20. Nd5 {[%emt 0:03:01]} Qxe2+ {[%emt 0:01:20]} 21. Kxe2 {[%emt 0:00:19]} Kd8 {[%emt 0:02:20]} 22. Rhf1 {[%emt 0:04:15]} Nc6 {[%emt 0:04:49]} 23. Ne4 {[%emt 0:03:42]} Bf8 {[%emt 0:06:26]} 24. Nb6 {[%emt 0:02:22]} Bg4+ {[%emt 0:00:23]} 25. Ke1 {[%emt 0:05:24]} Rb8 {[%emt 0:10:28]} 26. Rxf7 {[%emt 0:06:50]} Ne5 {[%emt 0:00:19]} 27. Rf2 {[%emt 0:01:16]} Nxd3+ {[%emt 0:05:24]} 28. cxd3 {[%emt 0:00:13]} Bg7 {[%emt 0:02:00]} 29. Nf6 {[%emt 0:06:52]} Bxf6 {[%emt 0:02:29]} 30. Rxf6 {[%emt 0:00:24]} Re8+ {[%emt 0:00:55]} 31. Kf2 {[%emt 0:00:42]} Re6 {[%emt 0:01:23]} 32. Rf8+ {[%emt 0:02:57]} Re8 {[%emt 0:00:04]} 33. Rxe8+ {[%emt 0:00:40]} Kxe8 {[%emt 0:00:05]} 34. Re1+ {[%emt 0:01:23]} Kf7 {[%emt 0:00:34]} 35. Nc4 {[%emt 0:05:36]} Kf6 {[%emt 0:02:08]} 36. d4 {[%emt 0:04:19]} Rd8 {[%emt 0:02:28]} 37. Re4 {[%emt 0:05:50]} Be6 {[%emt 0:09:02]} 38. b3 {[%emt 0:00:25]} Bf5 {[%emt 0:00:40]} 39. Rf4 {[%emt 0:00:53]} Kg5 {[%emt 0:02:03]} 40. g3 {[%emt 0:04:54]} Bb1 {[%emt 0:01:13]} 41. a3 {[%emt 0:32:56]} b5 {[%emt 0:31:41]} 42. Nd2 {[%emt 0:01:26]} Bc2 {[%emt 0:02:31]} 43. Ne4+ {[%emt 0:01:32]} Bxe4 {[%emt 0:01:22]} 44. Rxe4 {[%emt 0:00:09]} Kf6 {[%emt 0:00:11]} 45. Ke3 {[%emt 0:04:07]} Rc8 {[%emt 0:00:00]} 46. d5 {[%emt 0:00:00]} Rc3+ {[%emt 0:00:00]} 47. Kd4 {[%emt 0:00:00]} Rxb3 {[%emt 0:00:00]} 48. Re6+ {[%emt 0:00:00]} Kf7 {[%emt 0:00:00]} 49. Rxa6 {[%emt 0:00:00]} Rb2 {[%emt 0:00:00]} 50. Ra7+ {[%emt 0:00:00]} Kg6 {[%emt 0:00:00]} 51. d6 {[%emt 0:00:00]} Rxh2 {[%emt 0:00:00]} 52. d7 {[%emt 0:00:00]} Rd2+ {[%emt 0:00:00]} 53. Ke5 {[%emt 0:00:00]} h5 {[%emt 0:00:00]} 54. Ra6+ {[%emt 0:00:00]} 1-0

[Event "CZE-ch 2020"]
[Site "Pilsen"]
[Date "2020.08.25"]
[Round "3.3"]
[White "Finek, Vaclav"]
[Black "Polak, Tomas"]
[Result "1/2-1/2"]
[ECO "A05"]
[WhiteElo "2344"]
[BlackElo "2563"]
[Annotator "ChessBase"]
[PlyCount "80"]
[EventDate "2020.08.23"]
[EventType "swiss"]
[EventCountry "CZE"]
[SourceTitle "playchess.com"]
[Source "ChessBase"]
[SourceQuality "1"]
[TimeControl "40/5400+30:1800+30"]

1. Nf3 {[%emt 0:00:00]} Nf6 {[%emt 0:00:00]} 2. c4 {[%emt 0:00:00]} d6 {[%emt 0:00:17]} 3. d4 {[%emt 0:00:00]} Bf5 {[%emt 0:00:17]} 4. g3 {[%emt 0:01:06]} c6 {[%emt 0:03:14]} 5. Bg2 {[%emt 0:00:29]} h6 {[%emt 0:07:48]} 6. O-O {[%emt 0:02:18]} e6 {[%emt 0:00:09]} 7. Nc3 {[%emt 0:05:25]} Nbd7 {[%emt 0:02:14]} 8. Re1 {[%emt 0:10:11]} Ne4 {[%emt 0:01:17]} 9. Qb3 {[%emt 0:03:01]} Qb6 {[%emt 0:09:18]} 10. Nh4 {[%emt 0:08:53]} Nxc3 {[%emt 0:02:19]} 11. Nxf5 {[%emt 0:03:04]} Qxb3 {[%emt 0:12:11]} 12. axb3 {[%emt 0:00:20]} exf5 {[%emt 0:00:10]} 13. bxc3 {[%emt 0:00:09]} Nf6 {[%emt 0:00:45]} 14. b4 {[%emt 0:07:18]} d5 {[%emt 0:02:52]} 15. b5 {[%emt 0:07:13]} cxb5 {[%emt 0:04:37]} 16. cxb5 {[%emt 0:00:16]} Ne4 {[%emt 0:12:09]} 17. Bb2 {[%emt 0:03:29]} Kd7 {[%emt 0:04:29]} 18. b6 {[%emt 0:03:46]} a5 {[%emt 0:05:08]} 19. g4 {[%emt 0:08:27]} fxg4 {[%emt 0:02:20]} 20. c4 {[%emt 0:01:00]} Bb4 {[%emt 0:00:47]} 21. Rec1 {[%emt 0:04:57]} f5 {[%emt 0:00:36]} 22. c5 {[%emt 0:01:07]} Kc6 {[%emt 0:02:29]} 23. Rc2 {[%emt 0:02:52]} a4 {[%emt 0:05:33]} 24. Ba3 {[%emt 0:03:35]} Bxa3 {[%emt 0:00:25]} 25. Rxa3 {[%emt 0:00:18]} Ra5 {[%emt 0:00:19]} 26. e3 {[%emt 0:04:11]} Rb5 {[%emt 0:10:07]} 27. Rxa4 {[%emt 0:04:35]} Rb1+ {[%emt 0:00:15]} 28. Bf1 {[%emt 0:00:06]} g5 {[%emt 0:03:26]} 29. Ra5 {[%emt 0:08:18]} f4 {[%emt 0:01:40]} 30. Rca2 {[%emt 0:02:29]} fxe3 {[%emt 0:03:02]} 31. Ra1 {[%emt 0:02:04]} exf2+ {[%emt 0:00:54]} 32. Kg2 {[%emt 0:00:13]} Rxf1 {[%emt 0:03:44]} 33. Rxf1 {[%emt 0:01:25]} Rf8 {[%emt 0:00:06]} 34. Ra2 {[%emt 0:01:14]} h5 {[%emt 0:01:17]} 35. Raxf2 {[%emt 0:02:54]} Nxf2 {[%emt 0:00:06]} 36. Rxf2 {[%emt 0:00:09]} Rf4 {[%emt 0:00:54]} 37. Rxf4 {[%emt 0:00:58]} gxf4 {[%emt 0:00:05]} 38. h4 {[%emt 0:00:26]} f3+ {[%emt 0:00:49]} 39. Kf2 {[%emt 0:00:32]} Kd7 {[%emt 0:00:14]} 40. Kg3 {[%emt 0:00:33]} Kc6 {[%emt 0:00:10]} 1/2-1/2

[Event "CZE-ch 2020"]
[Site "Pilsen"]
[Date "2020.08.25"]
[Round "3.6"]
[White "Babula, Vlastimil"]
[Black "Rabatin, Jakub"]
[Result "0-1"]
[ECO "E97"]
[WhiteElo "2571"]
[BlackElo "2291"]
[Annotator "ChessBase"]
[PlyCount "84"]
[EventDate "2020.08.23"]
[EventType "swiss"]
[EventCountry "CZE"]
[SourceTitle "playchess.com"]
[Source "ChessBase"]
[SourceQuality "1"]
[TimeControl "40/5400+30:1800+30"]

1. d4 {[%emt 0:00:00]} Nf6 {[%emt 0:00:00]} 2. c4 {[%emt 0:00:00]} g6 {[%emt 0:00:00]} 3. Nc3 {[%emt 0:00:08]} Bg7 {[%emt 0:00:00]} 4. e4 {[%emt 0:00:20]} d6 {[%emt 0:00:00]} 5. Nf3 {[%emt 0:00:34]} O-O {[%emt 0:00:02]} 6. Be2 {[%emt 0:00:18]} e5 {[%emt 0:00:05]} 7. O-O {[%emt 0:00:31]} Nc6 {[%emt 0:00:13]} 8. d5 {[%emt 0:00:26]} Ne7 {[%emt 0:00:05]} 9. Bg5 {[%emt 0:00:36]} h6 {[%emt 0:05:31]} 10. Bxf6 {[%emt 0:00:21]} Bxf6 {[%emt 0:00:07]} 11. b4 {[%emt 0:00:30]} Bg7 {[%emt 0:17:14]} 12. c5 {[%emt 0:01:54]} f5 {[%emt 0:00:53]} 13. Nd2 {[%emt 0:00:42]} Kh8 {[%emt 0:08:03]} 14. a4 {[%emt 0:06:03]} Ng8 {[%emt 0:12:56]} 15. c6 {[%emt 0:02:44]} bxc6 {[%emt 0:04:39]} 16. dxc6 {[%emt 0:00:21]} Ne7 {[%emt 0:01:42]} 17. Bc4 {[%emt 0:01:46]} Nxc6 {[%emt 0:02:29]} 18. Bd5 {[%emt 0:00:57]} Bd7 {[%emt 0:07:28]} 19. b5 {[%emt 0:01:03]} Nd4 {[%emt 0:00:05]} 20. Bxa8 {[%emt 0:00:31]} Qxa8 {[%emt 0:00:03]} 21. Rc1 {[%emt 0:23:09]} Rf7 {[%emt 0:08:02]} 22. Re1 {[%emt 0:02:18]} fxe4 {[%emt 0:08:26]} 23. Ncxe4 {[%emt 0:00:47]} Be6 {[%emt 0:00:28]} 24. Rc3 {[%emt 0:03:28]} Qf8 {[%emt 0:06:35]} 25. f3 {[%emt 0:05:17]} Qd8 {[%emt 0:07:40]} 26. Nf1 {[%emt 0:03:11]} Bc8 {[%emt 0:04:05]} 27. Qd2 {[%emt 0:04:27]} Kh7 {[%emt 0:02:08]} 28. Nfg3 {[%emt 0:05:36]} d5 {[%emt 0:02:50]} 29. Nc5 {[%emt 0:06:07]} Qf6 {[%emt 0:00:48]} 30. Kh1 {[%emt 0:14:54]} h5 {[%emt 0:00:16]} 31. Qa2 {[%emt 0:02:44]} h4 {[%emt 0:00:15]} 32. Nge4 {[%emt 0:01:29]} Qd8 {[%emt 0:01:36]} 33. h3 {[%emt 0:03:02]} Rf8 {[%emt 0:01:01]} 34. Nf2 {[%emt 0:00:45]} Qg5 {[%emt 0:00:30]} 35. Ncd3 {[%emt 0:06:33]} Qg3 {[%emt 0:00:34]} 36. Qxd5 {[%emt 0:01:00]} Bxh3 {[%emt 0:00:17]} 37. Rg1 {[%emt 0:02:09]} Ne2 {[%emt 0:00:30]} 38. Rxc7 {[%emt 0:01:38]} Nxg1 {[%emt 0:00:17]} 39. Nxh3 {[%emt 0:00:10]} Nxf3 {[%emt 0:00:51]} 40. gxf3 {[%emt 0:00:54]} Qxh3+ {[%emt 0:00:05]} 41. Kg1 {[%emt 0:30:04]} Qg3+ {[%emt 0:02:55]} 42. Kh1 {[%emt 0:00:00]} Rxf3 {[%emt 0:00:35]} 0-1

[Event "CZE-ch 2020"]
[Site "Pilsen"]
[Date "2020.08.25"]
[Round "3.7"]
[White "Vorisek, Jaroslav"]
[Black "Nguyen, Thai Dai Van"]
[Result "0-1"]
[ECO "D30"]
[WhiteElo "2279"]
[BlackElo "2569"]
[Annotator "ChessBase"]
[PlyCount "52"]
[EventDate "2020.08.23"]
[EventType "swiss"]
[EventCountry "CZE"]
[SourceTitle "playchess.com"]
[Source "ChessBase"]
[SourceQuality "1"]
[TimeControl "40/5400+30:1800+30"]

1. d4 {[%emt 0:00:00]} d5 {[%emt 0:00:00]} 2. c4 {[%emt 0:00:00]} e6 {[%emt 0:00:00]} 3. g3 {[%emt 0:00:15]} dxc4 {[%emt 0:04:26]} 4. Bg2 {[%emt 0:04:17]} Nc6 {[%emt 0:00:06]} 5. Nf3 {[%emt 0:02:44]} Rb8 {[%emt 0:00:49]} 6. O-O {[%emt 0:04:24]} Nf6 {[%emt 0:03:49]} 7. Re1 {[%emt 0:19:58]} Be7 {[%emt 0:03:49]} 8. e4 {[%emt 0:03:29]} O-O {[%emt 0:01:59]} 9. Nc3 {[%emt 0:00:34]} b5 10. d5 {[%emt 0:11:07]} exd5 {[%emt 0:18:30]} 11. exd5 {[%emt 0:04:53]} Nb4 {[%emt 0:01:49]} 12. Nd4 {[%emt 0:00:25]} Bg4 {[%emt 0:02:44]} 13. Qd2 {[%emt 0:03:11]} Bd7 {[%emt 0:03:27]} 14. a4 {[%emt 0:06:59]} a6 {[%emt 0:00:47]} 15. axb5 {[%emt 0:02:19]} axb5 {[%emt 0:00:05]} 16. b3 {[%emt 0:01:36]} Nd3 {[%emt 0:02:28]} 17. Rf1 {[%emt 0:25:26]} Bc5 {[%emt 0:04:36]} 18. bxc4 {[%emt 0:01:17]} bxc4 {[%emt 0:01:52]} 19. Nc2 {[%emt 0:00:43]} Re8 {[%emt 0:01:21]} 20. Ba3 {[%emt 0:00:45]} Bb6 {[%emt 0:01:04]} 21. Nd1 {[%emt 0:02:08]} Ne4 {[%emt 0:04:26]} 22. Bxe4 {[%emt 0:00:17]} Rxe4 {[%emt 0:00:05]} 23. Kg2 {[%emt 0:00:27]} Qc8 {[%emt 0:00:44]} 24. Nde3 {[%emt 0:03:47]} Bh3+ {[%emt 0:00:09]} 25. Kg1 {[%emt 0:00:09]} Bxf1 {[%emt 0:01:50]} 26. Rxf1 {[%emt 0:00:04]} Qh3 {[%emt 0:00:32]} 0-1

[Event "CZE-ch 2020"]
[Site "Pilsen"]
[Date "2020.08.25"]
[Round "3.8"]
[White "Havelka, Josef"]
[Black "Stalmach, Richard"]
[Result "0-1"]
[ECO "B45"]
[WhiteElo "2367"]
[BlackElo "2273"]
[Annotator "ChessBase"]
[PlyCount "56"]
[EventDate "2020.08.23"]
[EventType "swiss"]
[EventCountry "CZE"]
[SourceTitle "playchess.com"]
[Source "ChessBase"]
[SourceQuality "1"]
[TimeControl "40/5400+30:1800+30"]

1. e4 {[%emt 0:00:00]} c5 {[%emt 0:00:00]} 2. Nf3 {[%emt 0:00:00]} Nc6 {[%emt 0:00:00]} 3. d4 {[%emt 0:00:09]} cxd4 {[%emt 0:00:00]} 4. Nxd4 {[%emt 0:00:05]} e6 {[%emt 0:00:00]} 5. Nc3 {[%emt 0:00:47]} Nf6 {[%emt 0:00:00]} 6. Nxc6 {[%emt 0:01:30]} bxc6 {[%emt 0:00:04]} 7. e5 {[%emt 0:00:07]} Nd5 {[%emt 0:00:03]} 8. Ne4 {[%emt 0:00:51]} Qc7 {[%emt 0:00:05]} 9. f4 {[%emt 0:00:23]} f5 {[%emt 0:00:07]} 10. exf6 {[%emt 0:14:51]} gxf6 {[%emt 0:00:06]} 11. Bc4 {[%emt 0:20:34]} Qb6 {[%emt 0:00:15]} 12. Qh5+ {[%emt 0:09:41]} Kd8 {[%emt 0:01:00]} 13. Bxd5 {[%emt 0:06:11]} exd5 {[%emt 0:00:17]} 14. Nxf6 {[%emt 0:07:38]} Be7 {[%emt 0:00:08]} 15. Ng4 {[%emt 0:04:09]} Re8 {[%emt 0:00:37]} 16. Ke2 {[%emt 0:02:52]} Ba6+ {[%emt 0:21:58]} 17. Kf3 {[%emt 0:00:08]} Bc5 {[%emt 0:00:12]} 18. h3 {[%emt 0:05:09]} Kc7 {[%emt 0:03:33]} 19. Kg3 {[%emt 0:05:03]} Re2 {[%emt 0:00:49]} 20. Rd1 {[%emt 0:04:52]} Rg8 {[%emt 0:20:26]} 21. c3 {[%emt 0:03:55]} Bf2+ {[%emt 0:03:04]} 22. Kh2 {[%emt 0:00:37]} Bg3+ {[%emt 0:00:03]} 23. Kh1 {[%emt 0:01:06]} Rxg4 {[%emt 0:00:17]} 24. Be3 {[%emt 0:05:42]} Qxe3 {[%emt 0:00:49]} 25. hxg4 {[%emt 0:00:27]} Rxg2 {[%emt 0:02:21]} 26. Qe5+ {[%emt 0:03:36]} Qxe5 {[%emt 0:00:03]} 27. fxe5 {[%emt 0:00:03]} Rxb2 {[%emt 0:00:43]} 28. Rg1 {[%emt 0:02:31]} Rh2# 0-1